bitfinex-derivatives/quotes_ETHF0:USTF0_20241007
["timestamp","ask_amount","ask_price","bid_price","bid_amount"]
[1728326482026,1.0184,2455.2,2454.8,0.4776]
[1728326482214,0.4074,2454.9,2454.8,0.88502]
[1728326482610,0.5022,2455.0,2454.8,0.4776]
[1728326482815,0.9096,2455.0,2454.9,0.4074]
[1728326484025,0.4074,2454.9,2454.8,0.4776]
[1728326484214,0.4074,2454.9,2454.3,3.61529]
[1728326484215,0.40749,2454.4,2454.3,3.61529]
[1728326484414,1.01856,2454.8,2454.0,9.12589]
[1728326484415,1.01862,2454.7,2454.2,0.93081]
[1728326484616,0.4075,2454.4,2454.3,0.40749]
[1728326484817,0.4075,2454.3,2454.2,0.93081]
[1728326485011,0.40752,2454.2,2454.1,0.91323]
[1728326485421,0.40752,2454.2,2454.1,4.98763]
[1728326485620,1.01875,2454.4,2454.1,4.5801]
[1728326485816,0.40752,2454.3,2454.2,0.40751]
[1728326486421,0.40752,2454.2,2454.1,0.5057]
[1728326486627,0.40752,2454.2,2454.1,0.40754]
[1728326486826,0.95753,2454.3,2454.2,0.40752]
[1728326489318,0.40754,2454.2,2454.1,0.40753]
[1728326491325,0.95753,2454.3,2454.2,0.40752]
[1728326492123,0.40754,2454.2,2454.1,0.40752]
[1728326492321,0.40754,2454.2,2453.8,1.54226]
[1728326492322,0.55,2454.3,2453.8,0.5233]
[1728326492522,0.40757,2454.0,2453.9,0.40756]
[1728326495628,0.40753,2454.2,2454.1,0.40752]
[1728326496929,0.40757,2454.0,2453.9,0.40755]
[1728326497128,0.40757,2453.9,2453.8,0.93086]
[1728326497627,0.40759,2453.8,2453.7,0.9201]
[1728326498731,0.40759,2453.9,2453.8,0.40757]
[1728326499431,0.40759,2453.8,2453.7,0.5125]
[1728326499734,0.88219,2453.8,2453.7,0.92009]
[1728326500831,0.4746,2453.8,2453.7,0.92009]
[1728326501536,0.88219,2453.8,2453.7,0.92009]
[1728326501731,0.4746,2453.8,2453.7,0.92009]
[1728326502330,0.88219,2453.8,2453.7,0.92009]
[1728326502535,0.40759,2453.8,2453.7,0.92009]
[1728326502924,0.87078,2453.9,2453.8,0.40759]
[1728326506030,0.4632,2453.9,2453.8,0.40759]
[1728326506730,0.4075,2454.3,2454.2,0.4075]
[1728326506925,0.8705,2454.4,2454.3,0.40749]
[1728326507739,4.59777,2454.6,2454.5,0.40747]
[1728326507937,0.4075,2454.4,2454.3,0.40748]
[1728326508137,0.40748,2454.5,2454.4,0.40748]
[1728326509932,0.40751,2454.3,2454.2,0.40751]
[1728326510142,4.19869,2454.5,2453.9,3.7134]
[1728326510739,0.40751,2454.3,2454.2,0.40751]
[1728326511131,0.4075,2454.4,2454.3,0.4075]
[1728326511334,0.40752,2454.3,2454.2,0.40752]
[1728326512332,0.40752,2454.2,2454.1,0.97432]
[1728326512539,0.40752,2454.3,2454.2,0.40751]
[1728326513442,0.40752,2454.2,2454.1,0.97433]
[1728326514339,0.40752,2454.2,2454.1,0.5668]
[1728326514537,0.40754,2454.1,2454.0,0.40754]
[1728326514738,1.45194,2454.1,2454.0,0.40754]
[1728326515242,3.12742916,2454.8,2454.0,16.463]
[1728326515436,4.40503591,2455.1,2454.5,3.18]
[1728326515437,1.0185,2455.0,2454.5,3.18]
[1728326515737,0.40742,2454.9,2454.8,0.40742]
[1728326515941,0.40742,2454.9,2454.6,0.5758]
[1728326516238,1.0185,2455.0,2454.6,0.5758]
[1728326516442,0.40744,2454.8,2454.6,0.5758]
[1728326516639,0.40742,2454.9,2454.7,0.40744]
[1728326516946,0.40742,2454.9,2454.7,0.40743]
[1728326517247,1.45178,2455.1,2454.7,0.40744]
[1728326517538,1.45178,2455.1,2455.0,0.40739]
[1728326517942,5.52538,2455.1,2455.0,0.40739]
[1728326518243,5.52538,2455.1,2454.6,1.59444]
[1728326518244,5.118,2455.1,2454.6,1.59444]
[1728326518444,1.45178,2455.1,2455.0,0.40739]
[1728326518836,5.52538,2455.1,2455.0,0.40739]
[1728326519138,0.4074,2455.0,2454.9,0.4074]
[1728326519542,4.481,2455.0,2454.9,0.4074]
[1728326521245,0.4074,2455.0,2454.9,0.4074]
[1728326521539,1.0444,2455.1,2454.7,4.1986]
[1728326521745,3.61516,2455.2,2455.1,0.40737]
[1728326522057,3.2078,2455.2,2455.1,3.58737]
[1728326522340,0.40733,2455.4,2455.3,0.40733]
[1728326522937,7.2528,2455.4,2454.9,3.2078]
[1728326523146,0.40748,2454.5,2454.3,3.6153]
[1728326523337,0.4075,2454.4,2454.2,0.40751]
[1728326523538,0.40746,2454.6,2454.4,0.40748]
[1728326523738,0.40746,2454.6,2454.1,1.0983]
[1728326523739,3.61528,2454.5,2454.3,0.40749]
[1728326524035,3.2078,2454.5,2454.1,1.0983]
[1728326524238,0.40751,2454.3,2454.1,1.50583]
[1728326524840,0.40752,2454.2,2454.1,1.50583]
[1728326525140,0.40752,2454.2,2454.1,1.0983]
[1728326525742,1.01873,2454.4,2454.1,1.0983]
[1728326525945,0.40752,2454.2,2454.1,1.50583]
[1728326526138,1.01873,2454.4,2454.1,1.0983]
[1728326526339,0.40752,2454.3,2454.2,0.40752]
[1728326528243,0.4075,2454.4,2454.3,0.4075]
[1728326529243,0.4075,2454.4,2454.1,1.0983]
[1728326529448,0.40752,2454.2,2454.1,1.50583]
[1728326529657,0.40752,2454.2,2454.1,1.0983]
[1728326529945,0.40752,2454.2,2453.8,3.2078]
[1728326529946,1.01885,2454.1,2453.8,3.2078]
[1728326530151,0.40759,2453.8,2453.7,0.98719]
[1728326530346,0.40759,2453.8,2453.7,0.5796]
[1728326530546,16.463,2453.8,2453.1,3.2078]
[1728326530749,3.58769,2453.2,2452.9,0.40773]
[1728326530947,3.18,2453.2,2452.6,1.1539]
[1728326531140,3.61549,2453.2,2453.1,0.4077]
[1728326531755,3.2078,2453.2,2452.6,1.1539]
[1728326532049,0.40771,2453.1,2453.0,0.40771]
[1728326532750,3.2078,2453.2,2453.0,0.40771]
[1728326532947,3.6155,2453.2,2453.0,0.40771]
[1728326533151,3.2078,2453.2,2452.6,2.17336]
[1728326533360,0.40771,2453.1,2453.0,0.40771]
[1728326533541,0.4077,2453.2,2453.1,0.4077]
[1728326533746,3.18,2453.3,2452.6,5.38116]
[1728326533747,0.40772,2453.0,2452.9,0.40773]
[1728326533944,3.2078,2453.2,2452.9,0.40773]
[1728326534147,0.40774,2452.9,2452.8,0.40775]
[1728326534644,0.40773,2453.0,2452.9,0.40774]
[1728326534949,0.40773,2453.0,2452.6,4.3617]
[1728326535151,0.40773,2453.0,2452.8,0.40774]
[1728326535346,0.40777,2452.8,2452.6,3.61557]
[1728326535652,3.18,2452.9,2452.3,0.40783]
[1728326535653,0.40779,2452.6,2452.3,0.40783]
[1728326535842,3.18,2452.5,2452.1,1.1752]
[1728326536043,0.40782,2452.4,2452.1,1.1752]
[1728326536449,3.58781,2452.5,2452.1,1.1752]
[1728326536652,3.61559,2452.6,2452.5,0.4078]
[1728326537457,3.61559,2452.6,2452.4,0.40781]
[1728326537647,3.61559,2452.6,2452.1,4.383]
[1728326537847,3.61559,2452.6,2452.5,0.4078]
[1728326538048,3.2078,2452.6,2452.5,0.4078]
[1728326538253,6.3878,2453.1,2452.3,3.18]
[1728326538452,6.3878,2453.1,2452.1,4.383]
[1728326538453,0.40774,2452.9,2452.8,0.40774]
[1728326538648,0.40773,2453.0,2452.8,0.40774]
[1728326539054,4.48453,2453.0,2452.8,0.40774]
[1728326539448,4.48453,2453.0,2452.9,0.40774]
[1728326539653,0.40772,2453.0,2452.8,0.40774]
[1728326540047,0.40774,2452.9,2452.7,0.40776]
[1728326540449,3.2078,2453.1,2452.4,4.22734]
[1728326540954,0.40774,2452.9,2452.8,0.40775]
[1728326541357,4.48454,2452.9,2452.8,0.40775]
[1728326542450,4.48454,2452.9,2452.7,0.40775]
[1728326542656,0.40774,2452.9,2452.8,0.40775]
[1728326543056,4.48454,2452.9,2452.8,0.40775]
[1728326543357,0.40776,2452.8,2452.7,0.40776]
[1728326543547,1.4689,2453.0,2452.4,4.22734]
[1728326543856,0.40774,2452.9,2452.7,0.40776]
[1728326544255,0.40774,2452.9,2452.8,0.40775]
[1728326544458,0.40776,2452.8,2452.4,3.2078]
[1728326544645,0.4078,2452.6,2452.5,0.4078]
[1728326544958,0.4078,2452.6,2452.2,4.197]
[1728326545259,3.6156,2452.5,2452.4,0.40781]
[1728326545459,3.2078,2452.5,2452.4,0.40781]
[1728326545756,0.4078,2452.6,2452.1,5.40267]
[1728326546060,0.4078,2452.6,2452.5,0.4078]
[1728326546359,0.40777,2452.8,2452.7,0.40777]
[1728326546558,0.40775,2452.9,2452.8,0.40774]
[1728326547663,0.40777,2452.7,2452.6,1.66997]
[1728326549652,3.61555,2452.9,2452.8,0.40775]
[1728326550355,3.61554,2452.9,2452.8,0.40775]
[1728326552055,3.61554,2452.9,2452.3,4.22737]
[1728326552056,0.40782,2452.4,2452.3,0.40782]
[1728326552461,0.40784,2452.3,2452.2,0.40784]
[1728326552653,0.40783,2452.4,2452.3,0.40783]
[1728326554161,1.14051,2452.5,2452.4,0.40782]
[1728326554365,1.14051,2452.5,2452.0,3.2078]
[1728326554366,0.40783,2452.4,2452.3,0.40782]
[1728326554664,1.75224,2452.5,2452.0,3.2078]
[1728326554866,0.40787,2452.1,2452.0,3.61567]
[1728326555165,1.01962,2452.3,2452.1,0.40786]
[1728326555166,0.40787,2452.2,2452.1,0.40786]
[1728326556261,5.09808,2452.2,2451.9,0.7167]
[1728326556464,5.09808,2452.2,2450.3,1.59015209]
[1728326556465,3.92,2452.0,2451.0,3.2078]
[1728326556765,1.01999,2451.4,2451.0,0.40804]
[1728326556964,0.40803,2451.2,2451.1,0.40803]
[1728326557163,0.40804,2451.1,2451.0,3.61584]
[1728326557357,0.40804,2451.1,2451.0,3.2078]
[1728326557665,0.40804,2451.1,2451.0,3.61585]
[1728326557867,0.40803,2451.2,2451.1,0.40803]
[1728326558063,1.73013,2451.3,2451.2,0.40802]
[1728326558064,0.40802,2451.3,2451.2,0.40802]
[1728326558267,4.8618,2451.5,2451.1,0.6759]
[1728326558469,0.40802,2451.2,2451.1,1.08393]
[1728326559273,3.2078,2451.5,2451.0,3.2078]
[1728326559274,4.22775,2451.5,2451.0,3.2078]
[1728326559569,0.40803,2451.2,2451.1,0.40803]
[1728326559965,2.44163,2451.6,2451.5,0.40796]
[1728326559966,0.40796,2451.6,2451.5,0.40796]
[1728326560864,3.9179,2451.9,2451.2,4.6245]
[1728326561177,0.40794,2451.7,2451.6,0.40794]
[1728326561661,4.93768,2451.9,2451.4,3.2078]
[1728326561860,0.408,2451.3,2451.2,1.82471]
[1728326562068,0.408,2451.3,2451.2,1.4167]
[1728326562257,0.408,2451.3,2451.2,1.82472]
[1728326562762,0.40798,2451.5,2451.4,0.40798]
[1728326563366,0.40799,2451.4,2451.3,0.40799]
[1728326564264,0.408,2451.3,2451.2,1.82471]
[1728326564568,0.408,2451.4,2451.3,0.408]
[1728326564956,1.6968,2451.6,2451.2,1.4167]
[1728326565264,0.408,2451.3,2451.2,1.8247]
[1728326565463,0.40799,2451.4,2451.3,0.40799]
[1728326565972,0.40787,2452.1,2452.0,0.40788]
[1728326566265,0.40784,2452.3,2452.2,0.40784]
[1728326566465,0.7397,2452.4,2451.7,1.01985]
[1728326566666,0.7397,2452.4,2452.2,0.40785]
[1728326566667,0.40784,2452.3,2452.2,0.40785]
[1728326566866,0.7397,2452.4,2451.8,42.2599]
[1728326567066,0.40787,2452.1,2452.0,0.40788]
[1728326567275,1.75927,2452.4,2452.1,0.40787]
[1728326567276,0.40786,2452.2,2452.1,0.40787]
[1728326567467,1.75927,2452.4,2451.8,42.2599]
[1728326567773,1.75927,2452.4,2452.2,0.40785]
[1728326567774,0.40785,2452.3,2452.2,0.40785]
[1728326568269,1.14753,2452.4,2451.9,1.01977]
[1728326568571,1.14753,2452.4,2452.2,0.40784]
[1728326568873,0.40784,2452.3,2452.2,0.40784]
[1728326569171,1.14752,2452.4,2452.3,0.40784]
[1728326569375,0.7397,2452.4,2452.3,0.40784]
[1728326569776,3.2078,2452.5,2452.4,0.40782]
[1728326569975,3.6156,2452.5,2452.4,0.40782]
[1728326570172,3.2078,2452.5,2452.4,0.40782]
[1728326570768,1.386,2452.6,2452.5,0.4078]
[1728326570964,5.00159,2452.6,2452.5,0.4078]
[1728326571177,4.5938,2452.6,2452.3,1.3904]
[1728326571568,3.9191,2452.6,2452.5,0.4078]
[1728326571774,1.13035,2452.9,2452.8,0.40775]
[1728326572074,5.20715,2452.9,2452.4,1.74856]
[1728326572276,1.13035,2452.9,2452.4,1.74856]
[1728326572474,0.7226,2452.9,2452.7,0.40775]
[1728326572778,1.13035,2452.9,2452.8,0.40775]
[1728326573276,1.13035,2452.9,2452.7,0.40776]
[1728326573277,0.40775,2452.8,2452.7,0.40776]
[1728326573469,1.13035,2452.9,2452.4,0.729]
[1728326573669,3.61552,2453.0,2452.9,0.40774]
[1728326574173,4.48452,2453.0,2452.9,0.40774]
[1728326576274,0.40772,2453.0,2452.9,0.40774]
[1728326577868,0.7113,2453.1,2452.5,1.0195]
[1728326578065,1.11901,2453.1,2453.0,0.40772]
[1728326578267,0.40772,2453.0,2452.9,0.40773]
[1728326578568,0.40773,2453.0,2452.9,0.40774]
[1728326579368,0.40779,2452.6,2452.5,0.4078]
[1728326579967,1.11449,2452.6,2452.2,3.8985]
[1728326580164,0.7067,2452.6,2452.4,0.40781]
[1728326580381,3.18,2452.5,2452.2,3.8985]
[1728326580570,3.58781,2452.5,2452.4,0.40782]
[1728326580766,4.0776,2452.4,2452.2,3.2078]
[1728326580986,0.4079,2452.0,2451.8,0.40791]
[1728326581273,3.58789,2452.0,2451.8,0.40791]
[1728326581877,3.58789,2452.0,2451.7,3.2078]
[1728326581878,3.18,2452.0,2451.7,3.2078]
[1728326582067,0.40792,2451.9,2451.7,3.61573]
[1728326582465,0.40794,2451.7,2451.5,0.40796]
[1728326582674,4.19974,2452.0,2451.6,0.40794]
[1728326582675,0.40792,2451.8,2451.6,0.40794]
[1728326582974,1.75464,2452.0,2451.4,3.2078]
[1728326582975,0.7349,2452.0,2451.4,3.2078]
[1728326583180,3.2078,2451.5,2450.8,3.2078]
[1728326583375,0.40806,2451.0,2450.8,3.2078]
[1728326583575,0.40805,2451.1,2450.8,3.61589]
[1728326584078,1.73992,2451.3,2450.8,3.2078]
[1728326584274,0.7199,2451.3,2450.8,3.2078]
[1728326584579,0.40809,2450.8,2450.7,3.2078]
[1728326584771,0.40806,2451.0,2450.7,0.4081]
[1728326585176,1.73993,2451.3,2450.4,3.2078]
[1728326585177,0.7199,2451.3,2450.4,3.2078]
[1728326585372,1.02008,2451.2,2450.7,3.2078]
[1728326585578,0.40808,2450.9,2450.7,3.2078]
[1728326585773,3.92,2451.0,2450.4,3.2078]
[1728326585974,0.40818,2450.3,2450.0,0.60821]
[1728326586180,3.92,2450.7,2450.0,0.2]
[1728326586375,1.42849,2450.5,2450.0,0.60821]
[1728326586579,0.40818,2450.3,2450.0,0.60821]
[1728326586890,0.40829,2449.6,2449.5,3.2078]
[1728326587274,0.40829,2449.6,2449.3,0.40833]
[1728326587275,0.4083,2449.6,2449.3,0.40833]
[1728326587476,1.02038,2450.5,2449.5,3.2078]
[1728326587676,0.4082,2450.2,2449.9,3.61603]
[1728326587972,0.40819,2450.2,2449.9,3.61602]
[1728326588180,1.02035,2450.5,2450.0,3.2078]
[1728326588382,1.02035,2450.5,2449.6,3.2078]
[1728326588577,1.02035,2450.5,2450.0,3.2078]
[1728326588776,0.40819,2450.2,2449.9,0.40822]
[1728326588988,0.40817,2450.4,2450.0,3.2078]
[1728326589281,0.40815,2450.5,2450.3,3.2078]
[1728326589483,4.32813,2450.6,2450.0,3.2078]
[1728326589782,4.90985,2450.8,2450.3,0.40816]
[1728326589783,0.40814,2450.5,2450.3,0.40816]
[1728326589971,0.40814,2450.5,2450.3,3.2078]
[1728326590178,0.40814,2450.5,2450.2,0.40818]
[1728326590378,0.40814,2450.5,2450.3,3.61596]
[1728326590886,0.40814,2450.5,2450.3,0.40816]
[1728326591074,0.6842,2451.2,2450.4,4.8207]
[1728326591275,0.40809,2450.9,2450.6,0.40811]
[1728326591475,3.892,2451.2,2450.6,0.40811]
[1728326591778,0.40808,2450.9,2450.6,0.40811]
[1728326591972,0.6842,2451.2,2450.4,3.9477]
[1728326592177,8.7828,2451.3,2450.7,3.2078]
[1728326592375,0.40803,2451.2,2450.9,0.40806]
[1728326592883,3.61581,2451.3,2451.0,0.40804]
[1728326593083,3.92,2451.8,2451.0,3.2078]
[1728326593277,3.2078,2451.9,2451.3,3.2078]
[1728326593479,3.2078,2451.9,2451.4,0.40799]
[1728326593480,0.40793,2451.8,2451.4,0.40799]
[1728326593673,0.40793,2451.8,2451.3,3.2078]
[1728326593877,1.01972,2452.0,2451.3,44.0078]
[1728326594077,0.40791,2451.9,2451.6,0.40795]
[1728326594274,9.5538658,2452.1,2451.7,0.40793]
[1728326594275,0.40789,2452.0,2451.7,0.40793]
[1728326594473,0.40792,2451.9,2451.6,0.40794]
[1728326594677,0.40791,2451.9,2451.7,0.40793]
[1728326595482,3.92,2452.1,2451.7,0.40793]
[1728326595679,0.4079,2452.0,2451.7,0.40793]
[1728326596084,3.92,2452.1,2451.7,0.40793]
[1728326596287,3.92,2452.1,2451.3,3.2078]
[1728326596485,3.92,2451.8,2451.3,3.2078]
[1728326596681,4.93981,2451.8,2451.3,3.6158]
[1728326596883,0.40797,2451.6,2451.3,3.6158]
[1728326597384,0.40797,2451.5,2451.3,3.6158]
[1728326597693,0.40799,2451.4,2451.2,0.40802]
[1728326597892,0.40801,2451.3,2451.1,1.14793]
[1728326598088,0.408,2451.4,2451.1,1.14793]
[1728326598393,0.408,2451.4,2451.1,0.7399]
[1728326598588,0.40799,2451.4,2451.2,0.40801]
[1728326598989,0.408,2451.3,2451.1,1.14793]
[1728326599284,0.40799,2451.4,2451.2,0.40802]
[1728326599489,0.40799,2451.4,2451.1,1.14792]
[1728326599695,0.40799,2451.4,2451.1,0.7399]
[1728326599893,0.40799,2451.4,2451.2,0.40802]
[1728326600192,0.40799,2451.4,2451.2,0.40801]
[1728326600387,0.40798,2451.5,2451.2,0.40801]
[1728326600587,0.40799,2451.4,2451.2,0.40801]
[1728326600788,1.01985,2451.7,2451.1,0.7399]
[1728326600991,0.40798,2451.5,2451.3,0.408]
[1728326602588,0.40793,2451.8,2451.6,0.40794]
[1728326602790,0.40789,2452.0,2451.6,3.2078]
[1728326602995,9.37696829,2452.2,2451.6,3.2078]
[1728326602996,1.3911,2452.2,2451.6,3.2078]
[1728326603184,0.40788,2452.1,2451.9,0.40789]
[1728326603582,4.48628,2452.1,2451.9,0.40789]
[1728326603989,0.40788,2452.1,2451.9,0.40789]
[1728326604185,1.3911,2452.2,2451.7,1.01985]
[1728326604502,0.40786,2452.2,2451.9,3.2078]
[1728326604691,0.40786,2452.2,2452.1,0.40787]
[1728326604889,5.93334,2452.5,2452.1,0.40787]
[1728326605093,0.40785,2452.3,2452.1,0.40787]
[1728326605388,3.2078,2452.5,2452.2,0.40785]
[1728326605590,0.40783,2452.4,2452.2,0.40785]
[1728326605900,0.40784,2452.3,2452.2,0.40785]
[1728326606099,3.2078,2452.5,2452.2,0.40785]
[1728326606302,3.12306829,2452.9,2452.2,3.2078]
[1728326606496,0.40777,2452.7,2452.5,0.40779]
[1728326606891,1.01932,2453.0,2452.6,0.40778]
[1728326606892,0.40777,2452.8,2452.6,0.40778]
[1728326607096,1.01932,2453.0,2452.5,0.4078]
[1728326607097,0.40778,2452.7,2452.5,0.4078]
[1728326607699,0.40777,2452.8,2452.6,0.40778]
[1728326607895,0.40775,2452.9,2452.7,0.40776]
[1728326608094,0.40777,2452.8,2452.6,0.40778]
[1728326608699,0.40772,2453.0,2452.8,0.40775]
[1728326608895,4.83810829,2453.2,2452.6,3.2078]
[1728326608896,0.6958,2453.2,2452.6,3.2078]
[1728326609200,1.01927,2453.1,2452.8,0.40775]
[1728326609413,0.40773,2453.0,2452.8,0.40775]
[1728326609994,0.6958,2453.2,2452.6,3.2078]
[1728326609995,0.40771,2453.1,2452.9,0.40772]
[1728326610501,0.40773,2453.0,2452.8,0.40774]
[1728326610704,0.6958,2453.2,2452.9,0.40773]
[1728326610705,0.40772,2453.1,2452.9,0.40773]
[1728326610902,0.40774,2453.0,2452.8,0.40775]
[1728326611294,1.71504,2453.2,2452.6,3.8953]
[1728326611503,3.2078,2452.8,2451.6,3.2078]
[1728326611699,3.2078,2452.8,2450.9,1.0598164]
[1728326611700,0.40789,2452.0,2451.8,0.40791]
[1728326611916,7.1278,2452.1,2451.6,0.40794]
[1728326611917,0.40792,2451.9,2451.6,0.40794]
[1728326612203,8.1475,2452.1,2451.7,0.40794]
[1728326612204,0.40789,2452.0,2451.7,0.40794]
[1728326612403,3.2078,2452.1,2451.9,0.4079]
[1728326613102,3.2078,2452.1,2452.0,0.40789]
[1728326614002,3.2078,2452.1,2452.0,4.0784]
[1728326614303,0.40795,2451.6,2451.5,0.7345]
[1728326614508,0.40798,2451.5,2451.2,0.40801]
[1728326614811,3.2078,2451.5,2451.4,0.40799]
[1728326615398,3.2078,2451.5,2451.0,1.02014]
[1728326615807,3.2078,2451.5,2451.4,0.40799]
[1728326616207,1.02003,2451.3,2450.9,1.3575]
[1728326616505,0.40805,2451.0,2450.9,1.3575]
[1728326616703,0.40804,2451.1,2450.9,1.3575]
[1728326616909,3.2078,2451.2,2450.9,1.3575]
[1728326617307,3.2078,2451.2,2451.1,0.40804]
[1728326618110,3.2078,2451.2,2450.9,1.76556]
[1728326618302,0.40805,2451.0,2450.9,1.3575]
[1728326618712,0.40805,2451.0,2450.9,0.6866]
[1728326619503,0.40804,2451.1,2451.0,0.40805]
[1728326619714,3.2078,2451.2,2450.9,1.09466]
[1728326620012,0.40805,2451.0,2450.9,1.09466]
[1728326620800,0.40805,2451.0,2450.9,0.6866]
[1728326621004,0.40805,2451.0,2450.9,1.09467]
[1728326621200,0.40805,2451.0,2450.9,0.6866]
[1728326621409,0.40814,2450.5,2450.4,0.701]
[1728326621809,0.40814,2450.5,2450.4,5.18995]
[1728326622520,0.40811,2450.7,2450.6,0.40811]
[1728326622813,0.40811,2450.7,2450.6,0.40812]
[1728326623022,3.6159,2450.8,2450.7,0.4081]
[1728326623616,4.22792,2451.1,2450.4,0.701]
[1728326623921,3.2078,2451.2,2450.6,3.2078]
[1728326624112,3.61583,2451.2,2450.7,1.02026]
[1728326624310,0.40804,2451.1,2451.0,0.40805]
[1728326624509,3.2078,2451.2,2451.1,0.40804]
[1728326624510,3.61583,2451.2,2451.1,0.40804]
[1728326624923,3.61583,2451.2,2450.7,1.02026]
[1728326625119,3.2078,2451.2,2451.0,0.40804]
[1728326625615,3.2078,2451.2,2450.7,1.02026]
[1728326625616,3.61583,2451.2,2451.1,0.40804]
[1728326625811,0.40804,2451.1,2451.0,0.40804]
[1728326626319,0.40803,2451.2,2451.1,0.40804]
[1728326626509,7.1278,2451.7,2450.9,3.2078]
[1728326626716,1.01991,2451.6,2451.0,1.4378]
[1728326627019,0.40801,2451.3,2451.2,0.40802]
[1728326629716,0.40804,2451.1,2451.0,1.84584]
[1728326630518,0.40804,2451.2,2451.1,0.40803]
[1728326630713,1.02003,2451.3,2451.0,1.84583]
[1728326630714,0.40804,2451.1,2451.0,1.84583]
[1728326631315,0.40803,2451.2,2451.1,0.40803]
[1728326632720,0.40803,2451.2,2451.0,1.4378]
[1728326632721,1.01998,2451.4,2451.0,1.4378]
[1728326632928,0.40804,2451.1,2451.0,1.4378]
[1728326633424,0.40804,2451.1,2451.0,1.84585]
[1728326634119,1.02003,2451.3,2451.0,1.4378]
[1728326634325,0.40799,2451.4,2451.3,0.40799]
[1728326634527,3.61578,2451.5,2451.4,0.40799]
[1728326635331,3.2078,2451.5,2451.4,0.40799]
[1728326635628,0.7189,2451.8,2451.2,1.02005]
[1728326635829,0.40795,2451.7,2451.6,0.40795]
[1728326636121,3.61575,2451.7,2451.6,0.40795]
[1728326636315,3.2078,2451.7,2451.6,0.40795]
[1728326637628,3.2078,2451.7,2451.6,1.14515]
[1728326641329,3.2078,2451.7,2451.6,5.22435]
[1728326641525,0.4972,2452.4,2451.6,5.22435]
[1728326641835,0.40785,2452.3,2452.2,0.40783]
[1728326642136,0.40784,2452.4,2452.3,0.40782]
[1728326643129,0.40782,2452.5,2452.4,0.4078]
[1728326643428,4.22728,2452.6,2452.5,0.4078]
[1728326643429,3.61559,2452.6,2452.5,0.4078]
[1728326643627,3.61559,2452.6,2452.4,0.4078]
[1728326643628,0.40781,2452.5,2452.4,0.4078]
[1728326643826,3.6156,2452.6,2452.5,0.4078]
[1728326644525,0.40792,2451.9,2451.8,0.40791]
[1728326644725,3.92,2451.9,2451.4,0.7324]
[1728326644934,0.40797,2451.5,2451.4,0.7324]
[1728326646227,4.92351,2451.8,2451.2,0.40801]
[1728326646228,0.40801,2451.3,2451.2,0.40801]
[1728326646821,0.40802,2451.2,2451.1,0.6924]
[1728326647427,0.40802,2451.2,2450.9,1.10426]
[1728326647730,0.40805,2451.1,2451.0,0.40804]
[1728326647929,3.2078,2451.4,2450.9,0.6962]
[1728326647930,0.40802,2451.2,2450.9,0.6962]
[1728326648126,0.40805,2451.1,2451.0,0.40804]
[1728326649626,0.40805,2451.1,2450.9,0.6962]
[1728326649627,0.40815,2450.4,2450.3,0.41224113]
[1728326649835,0.40815,2450.4,2450.3,0.00408113]
[1728326649836,3.61595,2450.4,2450.3,0.00408113]
[1728326650136,18.8866,2450.4,2449.4,4.22857]
[1728326650333,3.2078,2450.1,2449.4,5.63947]
[1728326650632,3.61601,2450.1,2449.5,1.02076]
[1728326650827,3.61601,2450.1,2450.0,0.40822]
[1728326651128,0.40822,2450.0,2449.8,0.40825]
[1728326651729,3.2078,2450.1,2449.4,5.63947]
[1728326651930,0.6867,2450.3,2449.7,3.2078]
[1728326652133,0.40821,2450.1,2449.9,0.40823]
[1728326652733,0.4082,2450.2,2449.9,0.40823]
[1728326653932,0.40821,2450.1,2449.9,0.40823]
[1728326654148,3.2078,2450.2,2449.8,0.40825]
[1728326654450,3.2078,2450.2,2450.0,0.40822]
[1728326654451,3.616,2450.2,2450.0,0.40822]
[1728326655033,3.2078,2450.2,2449.7,3.2078]
[1728326655248,3.616,2450.2,2450.0,0.40821]
[1728326656037,3.2078,2450.2,2449.7,3.2078]
[1728326656229,0.40822,2450.0,2449.8,0.40824]
[1728326656431,0.40819,2450.2,2450.0,0.40821]
[1728326656633,0.4082,2450.2,2450.0,0.40822]
[1728326657537,0.40821,2450.1,2449.9,0.40823]
[1728326657734,0.6867,2450.3,2449.9,0.40823]
[1728326657935,3.2078,2450.2,2449.9,0.40823]
[1728326658138,0.40821,2450.1,2449.9,0.40823]
[1728326658638,0.40821,2450.1,2449.4,2.43167]
[1728326658639,0.40819,2450.2,2450.0,3.61601]
[1728326658836,2.3647,2450.3,2449.6,1.02071]
[1728326658837,0.6867,2450.3,2449.7,3.2078]
[1728326659036,0.4082,2450.2,2450.0,0.40821]
[1728326659630,3.2078,2450.2,2449.7,3.2078]
[1728326659841,3.61599,2450.2,2450.0,0.40821]
[1728326660130,3.61599,2450.2,2449.7,3.2078]
[1728326660333,3.2078,2450.5,2449.7,3.2078]
[1728326660533,3.2078,2450.5,2450.2,0.40818]
[1728326660534,0.40816,2450.4,2450.2,0.40818]
[1728326660736,0.40816,2450.4,2449.8,0.6868]
[1728326660943,3.61594,2450.5,2450.3,0.40817]
[1728326661145,3.61594,2450.5,2449.9,1.7076]
[1728326661146,2.69832,2450.6,2450.0,3.2078]
[1728326661439,0.40816,2450.4,2450.0,3.9048]